Workbook

Sheet Tabell
D1: 1.4 | E1: 3 | F1: 5 | G1: 7 | H1: 9 | I1: 11 | J1: 13 | K1: 15 | L1: 17 | M1: 19 | N1: 21 | O1: 23 | P1: 25 | Q1: 27 | R1: 29 | S1: 31 | T1: 33 | U1: 35 | V1: 37
A3: Her ser du hvor mange stemmer det mangler på å ta flere mandater: | X3: Forrige valg | Z3: Endringer
A4: Parti | B4: Stemmer | C4: Ant mand. | D4: 1 | E4: 2 | F4: 3 | G4: 4 | H4: 5 | I4: 6 | J4: 7 | K4: 8 | L4: 9 | M4: 10 | N4: 11 | O4: 12 | P4: 13 | Q4: 14 | R4: 15 | S4: 16 | T4: 17 | U4: 18 | V4: 19 | X4: Ant st. | Y4: Ant mand. | Z4: Ant st. | AA4: Ant mand.
A5: A | B5: =Datagrunnlag!R19 -> 581 | C5: =19-COUNT(D5:V5) -> 8 | D5: =IF(($B5*19/D$1+$B5/10000)>'Ark2'!$E$21,"*",'Ark2'!$E$20*D$1/19-$B5) -> * | E5: =IF(($B5*19/E$1+$B5/10000)>'Ark2'!$E$21,"*",'Ark2'!$E$20*E$1/19-$B5) -> * | F5: =IF(($B5*19/F$1+$B5/10000)>'Ark2'!$E$21,"*",'Ark2'!$E$20*F$1/19-$B5) -> * | G5: =IF(($B5*19/G$1+$B5/10000)>'Ark2'!$E$21,"*",'Ark2'!$E$20*G$1/19-$B5) -> * | H5: =IF(($B5*19/H$1+$B5/10000)>'Ark2'!$E$21,"*",'Ark2'!$E$20*H$1/19-$B5) -> * | I5: =IF(($B5*19/I$1+$B5/10000)>'Ark2'!$E$21,"*",'Ark2'!$E$20*I$1/19-$B5) -> * | J5: =IF(($B5*19/J$1+$B5/10000)>'Ark2'!$E$21,"*",'Ark2'!$E$20*J$1/19-$B5) -> * | K5: =IF(($B5*19/K$1+$B5/10000)>'Ark2'!$E$21,"*",'Ark2'!$E$20*K$1/19-$B5) -> * | L5: =IF(($B5*19/L$1+$B5/10000)>'Ark2'!$E$21,"*",'Ark2'!$E$20*L$1/19-$B5) -> 77.51865088 | M5: =IF(($B5*19/M$1+$B5/10000)>'Ark2'!$E$21,"*",'Ark2'!$E$20*M$1/19-$B5) -> 154.9914333 | N5: =IF(($B5*19/N$1+$B5/10000)>'Ark2'!$E$21,"*",'Ark2'!$E$20*N$1/19-$B5) -> 232.4642158 | O5: =IF(($B5*19/O$1+$B5/10000)>'Ark2'!$E$21,"*",'Ark2'!$E$20*O$1/19-$B5) -> 309.9369982 | P5: =IF(($B5*19/P$1+$B5/10000)>'Ark2'!$E$21,"*",'Ark2'!$E$20*P$1/19-$B5) -> 387.4097807 | Q5: =IF(($B5*19/Q$1+$B5/10000)>'Ark2'!$E$21,"*",'Ark2'!$E$20*Q$1/19-$B5) -> 464.8825632 | R5: =IF(($B5*19/R$1+$B5/10000)>'Ark2'!$E$21,"*",'Ark2'!$E$20*R$1/19-$B5) -> 542.3553456 | S5: =IF(($B5*19/S$1+$B5/10000)>'Ark2'!$E$21,"*",'Ark2'!$E$20*S$1/19-$B5) -> 619.8281281 | T5: =IF(($B5*19/T$1+$B5/10000)>'Ark2'!$E$21,"*",'Ark2'!$E$20*T$1/19-$B5) -> 697.3009105 | U5: =IF(($B5*19/U$1+$B5/10000)>'Ark2'!$E$21,"*",'Ark2'!$E$20*U$1/19-$B5) -> 774.773693 | V5: =IF(($B5*19/V$1+$B5/10000)>'Ark2'!$E$21,"*",'Ark2'!$E$20*V$1/19-$B5) -> 852.2464754 | X5: 581 | Y5: 9 | Z5: =B5-X5 -> 0 | AA5: =C5-Y5 -> -1
A6: SV | B6: =Datagrunnlag!R20 -> 55 | C6: =19-COUNT(D6:V6) -> 1 | D6: =IF(($B6*19/D$1+$B6/10000)>'Ark2'!$E$21,"*",'Ark2'!$E$20*D$1/19-$B6) -> * | E6: =IF(($B6*19/E$1+$B6/10000)>'Ark2'!$E$21,"*",'Ark2'!$E$20*E$1/19-$B6) -> 61.20917368 | F6: =IF(($B6*19/F$1+$B6/10000)>'Ark2'!$E$21,"*",'Ark2'!$E$20*F$1/19-$B6) -> 138.6819561 | G6: =IF(($B6*19/G$1+$B6/10000)>'Ark2'!$E$21,"*",'Ark2'!$E$20*G$1/19-$B6) -> 216.1547386 | H6: =IF(($B6*19/H$1+$B6/10000)>'Ark2'!$E$21,"*",'Ark2'!$E$20*H$1/19-$B6) -> 293.6275211 | I6: =IF(($B6*19/I$1+$B6/10000)>'Ark2'!$E$21,"*",'Ark2'!$E$20*I$1/19-$B6) -> 371.1003035 | J6: =IF(($B6*19/J$1+$B6/10000)>'Ark2'!$E$21,"*",'Ark2'!$E$20*J$1/19-$B6) -> 448.573086 | K6: =IF(($B6*19/K$1+$B6/10000)>'Ark2'!$E$21,"*",'Ark2'!$E$20*K$1/19-$B6) -> 526.0458684 | L6: =IF(($B6*19/L$1+$B6/10000)>'Ark2'!$E$21,"*",'Ark2'!$E$20*L$1/19-$B6) -> 603.5186509 | M6: =IF(($B6*19/M$1+$B6/10000)>'Ark2'!$E$21,"*",'Ark2'!$E$20*M$1/19-$B6) -> 680.9914333 | N6: =IF(($B6*19/N$1+$B6/10000)>'Ark2'!$E$21,"*",'Ark2'!$E$20*N$1/19-$B6) -> 758.4642158 | O6: =IF(($B6*19/O$1+$B6/10000)>'Ark2'!$E$21,"*",'Ark2'!$E$20*O$1/19-$B6) -> 835.9369982 | P6: =IF(($B6*19/P$1+$B6/10000)>'Ark2'!$E$21,"*",'Ark2'!$E$20*P$1/19-$B6) -> 913.4097807 | Q6: =IF(($B6*19/Q$1+$B6/10000)>'Ark2'!$E$21,"*",'Ark2'!$E$20*Q$1/19-$B6) -> 990.8825632 | R6: =IF(($B6*19/R$1+$B6/10000)>'Ark2'!$E$21,"*",'Ark2'!$E$20*R$1/19-$B6) -> 1068.355346 | S6: =IF(($B6*19/S$1+$B6/10000)>'Ark2'!$E$21,"*",'Ark2'!$E$20*S$1/19-$B6) -> 1145.828128 | T6: =IF(($B6*19/T$1+$B6/10000)>'Ark2'!$E$21,"*",'Ark2'!$E$20*T$1/19-$B6) -> 1223.300911 | U6: =IF(($B6*19/U$1+$B6/10000)>'Ark2'!$E$21,"*",'Ark2'!$E$20*U$1/19-$B6) -> 1300.773693 | V6: =IF(($B6*19/V$1+$B6/10000)>'Ark2'!$E$21,"*",'Ark2'!$E$20*V$1/19-$B6) -> 1378.246475 | X6: 55 | Y6: 1 | Z6: =B6-X6 -> 0 | AA6: 0
A7: SP | B7: =Datagrunnlag!R21 -> 190 | C7: 2 | D7: =IF(($B7*19/D$1+$B7/10000)>'Ark2'!$E$21,"*",'Ark2'!$E$20*D$1/19-$B7) -> * | E7: =IF(($B7*19/E$1+$B7/10000)>'Ark2'!$E$21,"*",'Ark2'!$E$20*E$1/19-$B7) -> * | F7: =IF(($B7*19/F$1+$B7/10000)>'Ark2'!$E$21,"*",'Ark2'!$E$20*F$1/19-$B7) -> 3.68195614 | G7: =IF(($B7*19/G$1+$B7/10000)>'Ark2'!$E$21,"*",'Ark2'!$E$20*G$1/19-$B7) -> 81.1547386 | H7: =IF(($B7*19/H$1+$B7/10000)>'Ark2'!$E$21,"*",'Ark2'!$E$20*H$1/19-$B7) -> 158.6275211 | I7: =IF(($B7*19/I$1+$B7/10000)>'Ark2'!$E$21,"*",'Ark2'!$E$20*I$1/19-$B7) -> 236.1003035 | J7: =IF(($B7*19/J$1+$B7/10000)>'Ark2'!$E$21,"*",'Ark2'!$E$20*J$1/19-$B7) -> 313.573086 | K7: =IF(($B7*19/K$1+$B7/10000)>'Ark2'!$E$21,"*",'Ark2'!$E$20*K$1/19-$B7) -> 391.0458684 | L7: =IF(($B7*19/L$1+$B7/10000)>'Ark2'!$E$21,"*",'Ark2'!$E$20*L$1/19-$B7) -> 468.5186509 | M7: =IF(($B7*19/M$1+$B7/10000)>'Ark2'!$E$21,"*",'Ark2'!$E$20*M$1/19-$B7) -> 545.9914333 | N7: =IF(($B7*19/N$1+$B7/10000)>'Ark2'!$E$21,"*",'Ark2'!$E$20*N$1/19-$B7) -> 623.4642158 | O7: =IF(($B7*19/O$1+$B7/10000)>'Ark2'!$E$21,"*",'Ark2'!$E$20*O$1/19-$B7) -> 700.9369982 | P7: =IF(($B7*19/P$1+$B7/10000)>'Ark2'!$E$21,"*",'Ark2'!$E$20*P$1/19-$B7) -> 778.4097807 | Q7: =IF(($B7*19/Q$1+$B7/10000)>'Ark2'!$E$21,"*",'Ark2'!$E$20*Q$1/19-$B7) -> 855.8825632 | R7: =IF(($B7*19/R$1+$B7/10000)>'Ark2'!$E$21,"*",'Ark2'!$E$20*R$1/19-$B7) -> 933.3553456 | S7: =IF(($B7*19/S$1+$B7/10000)>'Ark2'!$E$21,"*",'Ark2'!$E$20*S$1/19-$B7) -> 1010.828128 | T7: =IF(($B7*19/T$1+$B7/10000)>'Ark2'!$E$21,"*",'Ark2'!$E$20*T$1/19-$B7) -> 1088.300911 | U7: =IF(($B7*19/U$1+$B7/10000)>'Ark2'!$E$21,"*",'Ark2'!$E$20*U$1/19-$B7) -> 1165.773693 | V7: =IF(($B7*19/V$1+$B7/10000)>'Ark2'!$E$21,"*",'Ark2'!$E$20*V$1/19-$B7) -> 1243.246475 | X7: 190 | Y7: 3 | Z7: 0 | AA7: -1
A8: H | B8: =Datagrunnlag!R22 -> 307 | C8: 4 | D8: =IF(($B8*19/D$1+$B8/10000)>'Ark2'!$E$21,"*",'Ark2'!$E$20*D$1/19-$B8) -> * | E8: =IF(($B8*19/E$1+$B8/10000)>'Ark2'!$E$21,"*",'Ark2'!$E$20*E$1/19-$B8) -> * | F8: =IF(($B8*19/F$1+$B8/10000)>'Ark2'!$E$21,"*",'Ark2'!$E$20*F$1/19-$B8) -> * | G8: =IF(($B8*19/G$1+$B8/10000)>'Ark2'!$E$21,"*",'Ark2'!$E$20*G$1/19-$B8) -> * | H8: =IF(($B8*19/H$1+$B8/10000)>'Ark2'!$E$21,"*",'Ark2'!$E$20*H$1/19-$B8) -> 41.62752105 | I8: =IF(($B8*19/I$1+$B8/10000)>'Ark2'!$E$21,"*",'Ark2'!$E$20*I$1/19-$B8) -> 119.1003035 | J8: =IF(($B8*19/J$1+$B8/10000)>'Ark2'!$E$21,"*",'Ark2'!$E$20*J$1/19-$B8) -> 196.573086 | K8: =IF(($B8*19/K$1+$B8/10000)>'Ark2'!$E$21,"*",'Ark2'!$E$20*K$1/19-$B8) -> 274.0458684 | L8: =IF(($B8*19/L$1+$B8/10000)>'Ark2'!$E$21,"*",'Ark2'!$E$20*L$1/19-$B8) -> 351.5186509 | M8: =IF(($B8*19/M$1+$B8/10000)>'Ark2'!$E$21,"*",'Ark2'!$E$20*M$1/19-$B8) -> 428.9914333 | N8: =IF(($B8*19/N$1+$B8/10000)>'Ark2'!$E$21,"*",'Ark2'!$E$20*N$1/19-$B8) -> 506.4642158 | O8: =IF(($B8*19/O$1+$B8/10000)>'Ark2'!$E$21,"*",'Ark2'!$E$20*O$1/19-$B8) -> 583.9369982 | P8: =IF(($B8*19/P$1+$B8/10000)>'Ark2'!$E$21,"*",'Ark2'!$E$20*P$1/19-$B8) -> 661.4097807 | Q8: =IF(($B8*19/Q$1+$B8/10000)>'Ark2'!$E$21,"*",'Ark2'!$E$20*Q$1/19-$B8) -> 738.8825632 | R8: =IF(($B8*19/R$1+$B8/10000)>'Ark2'!$E$21,"*",'Ark2'!$E$20*R$1/19-$B8) -> 816.3553456 | S8: =IF(($B8*19/S$1+$B8/10000)>'Ark2'!$E$21,"*",'Ark2'!$E$20*S$1/19-$B8) -> 893.8281281 | T8: =IF(($B8*19/T$1+$B8/10000)>'Ark2'!$E$21,"*",'Ark2'!$E$20*T$1/19-$B8) -> 971.3009105 | U8: =IF(($B8*19/U$1+$B8/10000)>'Ark2'!$E$21,"*",'Ark2'!$E$20*U$1/19-$B8) -> 1048.773693 | V8: =IF(($B8*19/V$1+$B8/10000)>'Ark2'!$E$21,"*",'Ark2'!$E$20*V$1/19-$B8) -> 1126.246475 | X8: 307 | Y8: 5 | Z8: 0 | AA8: -1
A9: FRP | B9: =Datagrunnlag!R23 -> 78 | C9: 1 | D9: =IF(($B9*19/D$1+$B9/10000)>'Ark2'!$E$21,"*",'Ark2'!$E$20*D$1/19-$B9) -> * | E9: =IF(($B9*19/E$1+$B9/10000)>'Ark2'!$E$21,"*",'Ark2'!$E$20*E$1/19-$B9) -> 38.20917368 | F9: =IF(($B9*19/F$1+$B9/10000)>'Ark2'!$E$21,"*",'Ark2'!$E$20*F$1/19-$B9) -> 115.6819561 | G9: =IF(($B9*19/G$1+$B9/10000)>'Ark2'!$E$21,"*",'Ark2'!$E$20*G$1/19-$B9) -> 193.1547386 | H9: =IF(($B9*19/H$1+$B9/10000)>'Ark2'!$E$21,"*",'Ark2'!$E$20*H$1/19-$B9) -> 270.6275211 | I9: =IF(($B9*19/I$1+$B9/10000)>'Ark2'!$E$21,"*",'Ark2'!$E$20*I$1/19-$B9) -> 348.1003035 | J9: =IF(($B9*19/J$1+$B9/10000)>'Ark2'!$E$21,"*",'Ark2'!$E$20*J$1/19-$B9) -> 425.573086 | K9: =IF(($B9*19/K$1+$B9/10000)>'Ark2'!$E$21,"*",'Ark2'!$E$20*K$1/19-$B9) -> 503.0458684 | L9: =IF(($B9*19/L$1+$B9/10000)>'Ark2'!$E$21,"*",'Ark2'!$E$20*L$1/19-$B9) -> 580.5186509 | M9: =IF(($B9*19/M$1+$B9/10000)>'Ark2'!$E$21,"*",'Ark2'!$E$20*M$1/19-$B9) -> 657.9914333 | N9: =IF(($B9*19/N$1+$B9/10000)>'Ark2'!$E$21,"*",'Ark2'!$E$20*N$1/19-$B9) -> 735.4642158 | O9: =IF(($B9*19/O$1+$B9/10000)>'Ark2'!$E$21,"*",'Ark2'!$E$20*O$1/19-$B9) -> 812.9369982 | P9: =IF(($B9*19/P$1+$B9/10000)>'Ark2'!$E$21,"*",'Ark2'!$E$20*P$1/19-$B9) -> 890.4097807 | Q9: =IF(($B9*19/Q$1+$B9/10000)>'Ark2'!$E$21,"*",'Ark2'!$E$20*Q$1/19-$B9) -> 967.8825632 | R9: =IF(($B9*19/R$1+$B9/10000)>'Ark2'!$E$21,"*",'Ark2'!$E$20*R$1/19-$B9) -> 1045.355346 | S9: =IF(($B9*19/S$1+$B9/10000)>'Ark2'!$E$21,"*",'Ark2'!$E$20*S$1/19-$B9) -> 1122.828128 | T9: =IF(($B9*19/T$1+$B9/10000)>'Ark2'!$E$21,"*",'Ark2'!$E$20*T$1/19-$B9) -> 1200.300911 | U9: =IF(($B9*19/U$1+$B9/10000)>'Ark2'!$E$21,"*",'Ark2'!$E$20*U$1/19-$B9) -> 1277.773693 | V9: =IF(($B9*19/V$1+$B9/10000)>'Ark2'!$E$21,"*",'Ark2'!$E$20*V$1/19-$B9) -> 1355.246475 | X9: 78 | Y9: 1 | Z9: 0 | AA9: 0
A10: SANUV | B10: =Datagrunnlag!R24 -> 89 | C10: 1 | D10: =IF(($B10*19/D$1+$B10/10000)>'Ark2'!$E$21,"*",'Ark2'!$E$20*D$1/19-$B10) -> * | E10: =IF(($B10*19/E$1+$B10/10000)>'Ark2'!$E$21,"*",'Ark2'!$E$20*E$1/19-$B10) -> 27.20917368 | F10: =IF(($B10*19/F$1+$B10/10000)>'Ark2'!$E$21,"*",'Ark2'!$E$20*F$1/19-$B10) -> 104.6819561 | G10: =IF(($B10*19/G$1+$B10/10000)>'Ark2'!$E$21,"*",'Ark2'!$E$20*G$1/19-$B10) -> 182.1547386 | H10: =IF(($B10*19/H$1+$B10/10000)>'Ark2'!$E$21,"*",'Ark2'!$E$20*H$1/19-$B10) -> 259.6275211 | I10: =IF(($B10*19/I$1+$B10/10000)>'Ark2'!$E$21,"*",'Ark2'!$E$20*I$1/19-$B10) -> 337.1003035 | J10: =IF(($B10*19/J$1+$B10/10000)>'Ark2'!$E$21,"*",'Ark2'!$E$20*J$1/19-$B10) -> 414.573086 | K10: =IF(($B10*19/K$1+$B10/10000)>'Ark2'!$E$21,"*",'Ark2'!$E$20*K$1/19-$B10) -> 492.0458684 | L10: =IF(($B10*19/L$1+$B10/10000)>'Ark2'!$E$21,"*",'Ark2'!$E$20*L$1/19-$B10) -> 569.5186509 | M10: =IF(($B10*19/M$1+$B10/10000)>'Ark2'!$E$21,"*",'Ark2'!$E$20*M$1/19-$B10) -> 646.9914333 | N10: =IF(($B10*19/N$1+$B10/10000)>'Ark2'!$E$21,"*",'Ark2'!$E$20*N$1/19-$B10) -> 724.4642158 | O10: =IF(($B10*19/O$1+$B10/10000)>'Ark2'!$E$21,"*",'Ark2'!$E$20*O$1/19-$B10) -> 801.9369982 | P10: =IF(($B10*19/P$1+$B10/10000)>'Ark2'!$E$21,"*",'Ark2'!$E$20*P$1/19-$B10) -> 879.4097807 | Q10: =IF(($B10*19/Q$1+$B10/10000)>'Ark2'!$E$21,"*",'Ark2'!$E$20*Q$1/19-$B10) -> 956.8825632 | R10: =IF(($B10*19/R$1+$B10/10000)>'Ark2'!$E$21,"*",'Ark2'!$E$20*R$1/19-$B10) -> 1034.355346 | S10: =IF(($B10*19/S$1+$B10/10000)>'Ark2'!$E$21,"*",'Ark2'!$E$20*S$1/19-$B10) -> 1111.828128 | T10: =IF(($B10*19/T$1+$B10/10000)>'Ark2'!$E$21,"*",'Ark2'!$E$20*T$1/19-$B10) -> 1189.300911 | U10: =IF(($B10*19/U$1+$B10/10000)>'Ark2'!$E$21,"*",'Ark2'!$E$20*U$1/19-$B10) -> 1266.773693 | V10: =IF(($B10*19/V$1+$B10/10000)>'Ark2'!$E$21,"*",'Ark2'!$E$20*V$1/19-$B10) -> 1344.246475 | X10: 89 | Y10: 1 | Z10: 0 | AA10: 0
A11: FE | B11: =Datagrunnlag!R25 -> 114 | C11: 1 | D11: =IF(($B11*19/D$1+$B11/10000)>'Ark2'!$E$21,"*",'Ark2'!$E$20*D$1/19-$B11) -> * | E11: =IF(($B11*19/E$1+$B11/10000)>'Ark2'!$E$21,"*",'Ark2'!$E$20*E$1/19-$B11) -> 2.209173684 | F11: =IF(($B11*19/F$1+$B11/10000)>'Ark2'!$E$21,"*",'Ark2'!$E$20*F$1/19-$B11) -> 79.68195614 | G11: =IF(($B11*19/G$1+$B11/10000)>'Ark2'!$E$21,"*",'Ark2'!$E$20*G$1/19-$B11) -> 157.1547386 | H11: =IF(($B11*19/H$1+$B11/10000)>'Ark2'!$E$21,"*",'Ark2'!$E$20*H$1/19-$B11) -> 234.6275211 | I11: =IF(($B11*19/I$1+$B11/10000)>'Ark2'!$E$21,"*",'Ark2'!$E$20*I$1/19-$B11) -> 312.1003035 | J11: =IF(($B11*19/J$1+$B11/10000)>'Ark2'!$E$21,"*",'Ark2'!$E$20*J$1/19-$B11) -> 389.573086 | K11: =IF(($B11*19/K$1+$B11/10000)>'Ark2'!$E$21,"*",'Ark2'!$E$20*K$1/19-$B11) -> 467.0458684 | L11: =IF(($B11*19/L$1+$B11/10000)>'Ark2'!$E$21,"*",'Ark2'!$E$20*L$1/19-$B11) -> 544.5186509 | M11: =IF(($B11*19/M$1+$B11/10000)>'Ark2'!$E$21,"*",'Ark2'!$E$20*M$1/19-$B11) -> 621.9914333 | N11: =IF(($B11*19/N$1+$B11/10000)>'Ark2'!$E$21,"*",'Ark2'!$E$20*N$1/19-$B11) -> 699.4642158 | O11: =IF(($B11*19/O$1+$B11/10000)>'Ark2'!$E$21,"*",'Ark2'!$E$20*O$1/19-$B11) -> 776.9369982 | P11: =IF(($B11*19/P$1+$B11/10000)>'Ark2'!$E$21,"*",'Ark2'!$E$20*P$1/19-$B11) -> 854.4097807 | Q11: =IF(($B11*19/Q$1+$B11/10000)>'Ark2'!$E$21,"*",'Ark2'!$E$20*Q$1/19-$B11) -> 931.8825632 | R11: =IF(($B11*19/R$1+$B11/10000)>'Ark2'!$E$21,"*",'Ark2'!$E$20*R$1/19-$B11) -> 1009.355346 | S11: =IF(($B11*19/S$1+$B11/10000)>'Ark2'!$E$21,"*",'Ark2'!$E$20*S$1/19-$B11) -> 1086.828128 | T11: =IF(($B11*19/T$1+$B11/10000)>'Ark2'!$E$21,"*",'Ark2'!$E$20*T$1/19-$B11) -> 1164.300911 | U11: =IF(($B11*19/U$1+$B11/10000)>'Ark2'!$E$21,"*",'Ark2'!$E$20*U$1/19-$B11) -> 1241.773693 | V11: =IF(($B11*19/V$1+$B11/10000)>'Ark2'!$E$21,"*",'Ark2'!$E$20*V$1/19-$B11) -> 1319.246475 | X11: 114 | Y11: 2 | Z11: 0 | AA11: -1
A12: V | B12: =Datagrunnlag!R26 -> 77 | C12: 1 | D12: =IF(($B12*19/D$1+$B12/10000)>'Ark2'!$E$21,"*",'Ark2'!$E$20*D$1/19-$B12) -> * | E12: =IF(($B12*19/E$1+$B12/10000)>'Ark2'!$E$21,"*",'Ark2'!$E$20*E$1/19-$B12) -> 39.20917368 | F12: =IF(($B12*19/F$1+$B12/10000)>'Ark2'!$E$21,"*",'Ark2'!$E$20*F$1/19-$B12) -> 116.6819561 | G12: =IF(($B12*19/G$1+$B12/10000)>'Ark2'!$E$21,"*",'Ark2'!$E$20*G$1/19-$B12) -> 194.1547386 | H12: =IF(($B12*19/H$1+$B12/10000)>'Ark2'!$E$21,"*",'Ark2'!$E$20*H$1/19-$B12) -> 271.6275211 | I12: =IF(($B12*19/I$1+$B12/10000)>'Ark2'!$E$21,"*",'Ark2'!$E$20*I$1/19-$B12) -> 349.1003035 | J12: =IF(($B12*19/J$1+$B12/10000)>'Ark2'!$E$21,"*",'Ark2'!$E$20*J$1/19-$B12) -> 426.573086 | K12: =IF(($B12*19/K$1+$B12/10000)>'Ark2'!$E$21,"*",'Ark2'!$E$20*K$1/19-$B12) -> 504.0458684 | L12: =IF(($B12*19/L$1+$B12/10000)>'Ark2'!$E$21,"*",'Ark2'!$E$20*L$1/19-$B12) -> 581.5186509 | M12: =IF(($B12*19/M$1+$B12/10000)>'Ark2'!$E$21,"*",'Ark2'!$E$20*M$1/19-$B12) -> 658.9914333 | N12: =IF(($B12*19/N$1+$B12/10000)>'Ark2'!$E$21,"*",'Ark2'!$E$20*N$1/19-$B12) -> 736.4642158 | O12: =IF(($B12*19/O$1+$B12/10000)>'Ark2'!$E$21,"*",'Ark2'!$E$20*O$1/19-$B12) -> 813.9369982 | P12: =IF(($B12*19/P$1+$B12/10000)>'Ark2'!$E$21,"*",'Ark2'!$E$20*P$1/19-$B12) -> 891.4097807 | Q12: =IF(($B12*19/Q$1+$B12/10000)>'Ark2'!$E$21,"*",'Ark2'!$E$20*Q$1/19-$B12) -> 968.8825632 | R12: =IF(($B12*19/R$1+$B12/10000)>'Ark2'!$E$21,"*",'Ark2'!$E$20*R$1/19-$B12) -> 1046.355346 | S12: =IF(($B12*19/S$1+$B12/10000)>'Ark2'!$E$21,"*",'Ark2'!$E$20*S$1/19-$B12) -> 1123.828128 | T12: =IF(($B12*19/T$1+$B12/10000)>'Ark2'!$E$21,"*",'Ark2'!$E$20*T$1/19-$B12) -> 1201.300911 | U12: =IF(($B12*19/U$1+$B12/10000)>'Ark2'!$E$21,"*",'Ark2'!$E$20*U$1/19-$B12) -> 1278.773693 | V12: =IF(($B12*19/V$1+$B12/10000)>'Ark2'!$E$21,"*",'Ark2'!$E$20*V$1/19-$B12) -> 1356.246475 | X12: 77 | Y12: 1 | Z12: 0 | AA12: 0
B13: =SUM(B5:B12) -> 1491 | C13: =SUM(C5:C12) -> 19 | X13: 1491 | Y13: 23 | Z13: 0 | AA13: -4
A16: Her ser du hvor trygge mandatene er:
A17: Parti | B17: Stemmer | C17: Ant mand. | D17: 1 | E17: 2 | F17: 3 | G17: 4 | H17: 5 | I17: 6 | J17: 7 | K17: 8 | L17: 9 | M17: 10 | N17: 11 | O17: 12 | P17: 13 | Q17: 14 | R17: 15 | S17: 16 | T17: 17 | U17: 18 | V17: 19
A18: A | B18: =B5 -> 581 | C18: =COUNT(D18:N18) -> 8 | D18: =IF(D5="*",-('Ark2'!$E$21*D$1/19-$B18),"") -> 527.7986 | E18: =IF(E5="*",-('Ark2'!$E$21*E$1/19-$B18),"") -> 466.997 | F18: =IF(F5="*",-('Ark2'!$E$21*F$1/19-$B18),"") -> 390.995 | G18: =IF(G5="*",-('Ark2'!$E$21*G$1/19-$B18),"") -> 314.993 | H18: =IF(H5="*",-('Ark2'!$E$21*H$1/19-$B18),"") -> 238.991 | I18: =IF(I5="*",-('Ark2'!$E$21*I$1/19-$B18),"") -> 162.989 | J18: =IF(J5="*",-('Ark2'!$E$21*J$1/19-$B18),"") -> 86.987 | K18: =IF(K5="*",-('Ark2'!$E$21*K$1/19-$B18),"") -> 10.985 | L18: =IF(L5="*",-('Ark2'!$E$21*L$1/19-$B18),"") ->  | M18: =IF(M5="*",-('Ark2'!$E$21*M$1/19-$B18),"") ->  | N18: =IF(N5="*",-('Ark2'!$E$21*N$1/19-$B18),"") ->  | O18: =IF(O5="*",-('Ark2'!$E$21*O$1/19-$B18),"") ->  | P18: =IF(P5="*",-('Ark2'!$E$21*P$1/19-$B18),"") ->  | Q18: =IF(Q5="*",-('Ark2'!$E$21*Q$1/19-$B18),"") ->  | R18: =IF(R5="*",-('Ark2'!$E$21*R$1/19-$B18),"") ->  | S18: =IF(S5="*",-('Ark2'!$E$21*S$1/19-$B18),"") ->  | T18: =IF(T5="*",-('Ark2'!$E$21*T$1/19-$B18),"") ->  | U18: =IF(U5="*",-('Ark2'!$E$21*U$1/19-$B18),"") ->  | V18: =IF(V5="*",-('Ark2'!$E$21*V$1/19-$B18),"") -> 
A19: SV | B19: =B6 -> 55 | C19: =COUNT(D19:N19) -> 1 | D19: =IF(D6="*",-('Ark2'!$E$21*D$1/19-$B19),"") -> 1.7986 | E19: =IF(E6="*",-('Ark2'!$E$21*E$1/19-$B19),"") ->  | F19: =IF(F6="*",-('Ark2'!$E$21*F$1/19-$B19),"") ->  | G19: =IF(G6="*",-('Ark2'!$E$21*G$1/19-$B19),"") ->  | H19: =IF(H6="*",-('Ark2'!$E$21*H$1/19-$B19),"") ->  | I19: =IF(I6="*",-('Ark2'!$E$21*I$1/19-$B19),"") ->  | J19: =IF(J6="*",-('Ark2'!$E$21*J$1/19-$B19),"") ->  | K19: =IF(K6="*",-('Ark2'!$E$21*K$1/19-$B19),"") ->  | L19: =IF(L6="*",-('Ark2'!$E$21*L$1/19-$B19),"") ->  | M19: =IF(M6="*",-('Ark2'!$E$21*M$1/19-$B19),"") ->  | N19: =IF(N6="*",-('Ark2'!$E$21*N$1/19-$B19),"") ->  | O19: =IF(O6="*",-('Ark2'!$E$21*O$1/19-$B19),"") ->  | P19: =IF(P6="*",-('Ark2'!$E$21*P$1/19-$B19),"") ->  | Q19: =IF(Q6="*",-('Ark2'!$E$21*Q$1/19-$B19),"") ->  | R19: =IF(R6="*",-('Ark2'!$E$21*R$1/19-$B19),"") ->  | S19: =IF(S6="*",-('Ark2'!$E$21*S$1/19-$B19),"") ->  | T19: =IF(T6="*",-('Ark2'!$E$21*T$1/19-$B19),"") ->  | U19: =IF(U6="*",-('Ark2'!$E$21*U$1/19-$B19),"") ->  | V19: =IF(V6="*",-('Ark2'!$E$21*V$1/19-$B19),"") -> 
A20: SP | B20: 190 | C20: 2 | D20: =IF(D7="*",-('Ark2'!$E$21*D$1/19-$B20),"") -> 136.7986 | E20: =IF(E7="*",-('Ark2'!$E$21*E$1/19-$B20),"") -> 75.997 | F20: =IF(F7="*",-('Ark2'!$E$21*F$1/19-$B20),"") ->  | G20: =IF(G7="*",-('Ark2'!$E$21*G$1/19-$B20),"") ->  | H20: =IF(H7="*",-('Ark2'!$E$21*H$1/19-$B20),"") ->  | I20: =IF(I7="*",-('Ark2'!$E$21*I$1/19-$B20),"") ->  | J20: =IF(J7="*",-('Ark2'!$E$21*J$1/19-$B20),"") ->  | K20: =IF(K7="*",-('Ark2'!$E$21*K$1/19-$B20),"") ->  | L20: =IF(L7="*",-('Ark2'!$E$21*L$1/19-$B20),"") ->  | M20: =IF(M7="*",-('Ark2'!$E$21*M$1/19-$B20),"") ->  | N20: =IF(N7="*",-('Ark2'!$E$21*N$1/19-$B20),"") ->  | O20: =IF(O7="*",-('Ark2'!$E$21*O$1/19-$B20),"") ->  | P20: =IF(P7="*",-('Ark2'!$E$21*P$1/19-$B20),"") ->  | Q20: =IF(Q7="*",-('Ark2'!$E$21*Q$1/19-$B20),"") ->  | R20: =IF(R7="*",-('Ark2'!$E$21*R$1/19-$B20),"") ->  | S20: =IF(S7="*",-('Ark2'!$E$21*S$1/19-$B20),"") ->  | T20: =IF(T7="*",-('Ark2'!$E$21*T$1/19-$B20),"") ->  | U20: =IF(U7="*",-('Ark2'!$E$21*U$1/19-$B20),"") ->  | V20: =IF(V7="*",-('Ark2'!$E$21*V$1/19-$B20),"") -> 
A21: H | B21: 307 | C21: 4 | D21: =IF(D8="*",-('Ark2'!$E$21*D$1/19-$B21),"") -> 253.7986 | E21: =IF(E8="*",-('Ark2'!$E$21*E$1/19-$B21),"") -> 192.997 | F21: =IF(F8="*",-('Ark2'!$E$21*F$1/19-$B21),"") -> 116.995 | G21: =IF(G8="*",-('Ark2'!$E$21*G$1/19-$B21),"") -> 40.993 | H21: =IF(H8="*",-('Ark2'!$E$21*H$1/19-$B21),"") ->  | I21: =IF(I8="*",-('Ark2'!$E$21*I$1/19-$B21),"") ->  | J21: =IF(J8="*",-('Ark2'!$E$21*J$1/19-$B21),"") ->  | K21: =IF(K8="*",-('Ark2'!$E$21*K$1/19-$B21),"") ->  | L21: =IF(L8="*",-('Ark2'!$E$21*L$1/19-$B21),"") ->  | M21: =IF(M8="*",-('Ark2'!$E$21*M$1/19-$B21),"") ->  | N21: =IF(N8="*",-('Ark2'!$E$21*N$1/19-$B21),"") ->  | O21: =IF(O8="*",-('Ark2'!$E$21*O$1/19-$B21),"") ->  | P21: =IF(P8="*",-('Ark2'!$E$21*P$1/19-$B21),"") ->  | Q21: =IF(Q8="*",-('Ark2'!$E$21*Q$1/19-$B21),"") ->  | R21: =IF(R8="*",-('Ark2'!$E$21*R$1/19-$B21),"") ->  | S21: =IF(S8="*",-('Ark2'!$E$21*S$1/19-$B21),"") ->  | T21: =IF(T8="*",-('Ark2'!$E$21*T$1/19-$B21),"") ->  | U21: =IF(U8="*",-('Ark2'!$E$21*U$1/19-$B21),"") ->  | V21: =IF(V8="*",-('Ark2'!$E$21*V$1/19-$B21),"") -> 
A22: FRP | B22: 78 | C22: 1 | D22: =IF(D9="*",-('Ark2'!$E$21*D$1/19-$B22),"") -> 24.7986 | E22: =IF(E9="*",-('Ark2'!$E$21*E$1/19-$B22),"") ->  | F22: =IF(F9="*",-('Ark2'!$E$21*F$1/19-$B22),"") ->  | G22: =IF(G9="*",-('Ark2'!$E$21*G$1/19-$B22),"") ->  | H22: =IF(H9="*",-('Ark2'!$E$21*H$1/19-$B22),"") ->  | I22: =IF(I9="*",-('Ark2'!$E$21*I$1/19-$B22),"") ->  | J22: =IF(J9="*",-('Ark2'!$E$21*J$1/19-$B22),"") ->  | K22: =IF(K9="*",-('Ark2'!$E$21*K$1/19-$B22),"") ->  | L22: =IF(L9="*",-('Ark2'!$E$21*L$1/19-$B22),"") ->  | M22: =IF(M9="*",-('Ark2'!$E$21*M$1/19-$B22),"") ->  | N22: =IF(N9="*",-('Ark2'!$E$21*N$1/19-$B22),"") ->  | O22: =IF(O9="*",-('Ark2'!$E$21*O$1/19-$B22),"") ->  | P22: =IF(P9="*",-('Ark2'!$E$21*P$1/19-$B22),"") ->  | Q22: =IF(Q9="*",-('Ark2'!$E$21*Q$1/19-$B22),"") ->  | R22: =IF(R9="*",-('Ark2'!$E$21*R$1/19-$B22),"") ->  | S22: =IF(S9="*",-('Ark2'!$E$21*S$1/19-$B22),"") ->  | T22: =IF(T9="*",-('Ark2'!$E$21*T$1/19-$B22),"") ->  | U22: =IF(U9="*",-('Ark2'!$E$21*U$1/19-$B22),"") ->  | V22: =IF(V9="*",-('Ark2'!$E$21*V$1/19-$B22),"") -> 
A23: SANUV | B23: 89 | C23: 1 | D23: =IF(D10="*",-('Ark2'!$E$21*D$1/19-$B23),"") -> 35.7986 | E23: =IF(E10="*",-('Ark2'!$E$21*E$1/19-$B23),"") ->  | F23: =IF(F10="*",-('Ark2'!$E$21*F$1/19-$B23),"") ->  | G23: =IF(G10="*",-('Ark2'!$E$21*G$1/19-$B23),"") ->  | H23: =IF(H10="*",-('Ark2'!$E$21*H$1/19-$B23),"") ->  | I23: =IF(I10="*",-('Ark2'!$E$21*I$1/19-$B23),"") ->  | J23: =IF(J10="*",-('Ark2'!$E$21*J$1/19-$B23),"") ->  | K23: =IF(K10="*",-('Ark2'!$E$21*K$1/19-$B23),"") ->  | L23: =IF(L10="*",-('Ark2'!$E$21*L$1/19-$B23),"") ->  | M23: =IF(M10="*",-('Ark2'!$E$21*M$1/19-$B23),"") ->  | N23: =IF(N10="*",-('Ark2'!$E$21*N$1/19-$B23),"") ->  | O23: =IF(O10="*",-('Ark2'!$E$21*O$1/19-$B23),"") ->  | P23: =IF(P10="*",-('Ark2'!$E$21*P$1/19-$B23),"") ->  | Q23: =IF(Q10="*",-('Ark2'!$E$21*Q$1/19-$B23),"") ->  | R23: =IF(R10="*",-('Ark2'!$E$21*R$1/19-$B23),"") ->  | S23: =IF(S10="*",-('Ark2'!$E$21*S$1/19-$B23),"") ->  | T23: =IF(T10="*",-('Ark2'!$E$21*T$1/19-$B23),"") ->  | U23: =IF(U10="*",-('Ark2'!$E$21*U$1/19-$B23),"") ->  | V23: =IF(V10="*",-('Ark2'!$E$21*V$1/19-$B23),"") -> 
A24: FE | B24: 114 | C24: 1 | D24: =IF(D11="*",-('Ark2'!$E$21*D$1/19-$B24),"") -> 60.7986 | E24: =IF(E11="*",-('Ark2'!$E$21*E$1/19-$B24),"") ->  | F24: =IF(F11="*",-('Ark2'!$E$21*F$1/19-$B24),"") ->  | G24: =IF(G11="*",-('Ark2'!$E$21*G$1/19-$B24),"") ->  | H24: =IF(H11="*",-('Ark2'!$E$21*H$1/19-$B24),"") ->  | I24: =IF(I11="*",-('Ark2'!$E$21*I$1/19-$B24),"") ->  | J24: =IF(J11="*",-('Ark2'!$E$21*J$1/19-$B24),"") ->  | K24: =IF(K11="*",-('Ark2'!$E$21*K$1/19-$B24),"") ->  | L24: =IF(L11="*",-('Ark2'!$E$21*L$1/19-$B24),"") ->  | M24: =IF(M11="*",-('Ark2'!$E$21*M$1/19-$B24),"") ->  | N24: =IF(N11="*",-('Ark2'!$E$21*N$1/19-$B24),"") ->  | O24: =IF(O11="*",-('Ark2'!$E$21*O$1/19-$B24),"") ->  | P24: =IF(P11="*",-('Ark2'!$E$21*P$1/19-$B24),"") ->  | Q24: =IF(Q11="*",-('Ark2'!$E$21*Q$1/19-$B24),"") ->  | R24: =IF(R11="*",-('Ark2'!$E$21*R$1/19-$B24),"") ->  | S24: =IF(S11="*",-('Ark2'!$E$21*S$1/19-$B24),"") ->  | T24: =IF(T11="*",-('Ark2'!$E$21*T$1/19-$B24),"") ->  | U24: =IF(U11="*",-('Ark2'!$E$21*U$1/19-$B24),"") ->  | V24: =IF(V11="*",-('Ark2'!$E$21*V$1/19-$B24),"") -> 
A25: V | B25: 77 | C25: 1 | D25: =IF(D12="*",-('Ark2'!$E$21*D$1/19-$B25),"") -> 23.7986 | E25: =IF(E12="*",-('Ark2'!$E$21*E$1/19-$B25),"") ->  | F25: =IF(F12="*",-('Ark2'!$E$21*F$1/19-$B25),"") ->  | G25: =IF(G12="*",-('Ark2'!$E$21*G$1/19-$B25),"") ->  | H25: =IF(H12="*",-('Ark2'!$E$21*H$1/19-$B25),"") ->  | I25: =IF(I12="*",-('Ark2'!$E$21*I$1/19-$B25),"") ->  | J25: =IF(J12="*",-('Ark2'!$E$21*J$1/19-$B25),"") ->  | K25: =IF(K12="*",-('Ark2'!$E$21*K$1/19-$B25),"") ->  | L25: =IF(L12="*",-('Ark2'!$E$21*L$1/19-$B25),"") ->  | M25: =IF(M12="*",-('Ark2'!$E$21*M$1/19-$B25),"") ->  | N25: =IF(N12="*",-('Ark2'!$E$21*N$1/19-$B25),"") ->  | O25: =IF(O12="*",-('Ark2'!$E$21*O$1/19-$B25),"") ->  | P25: =IF(P12="*",-('Ark2'!$E$21*P$1/19-$B25),"") ->  | Q25: =IF(Q12="*",-('Ark2'!$E$21*Q$1/19-$B25),"") ->  | R25: =IF(R12="*",-('Ark2'!$E$21*R$1/19-$B25),"") ->  | S25: =IF(S12="*",-('Ark2'!$E$21*S$1/19-$B25),"") ->  | T25: =IF(T12="*",-('Ark2'!$E$21*T$1/19-$B25),"") ->  | U25: =IF(U12="*",-('Ark2'!$E$21*U$1/19-$B25),"") ->  | V25: =IF(V12="*",-('Ark2'!$E$21*V$1/19-$B25),"") -> 
B26: =SUM(B18:B25) -> 1491 | C26: =SUM(C18:C25) -> 19

Sheet Ark2
A1: Parti | B1: Nr | C1: St | D1: Dt | E1: Kvotient
A2: A | B2: 1 | C2: =Tabell!$B$5 -> 581 | D2: 1.4 | E2: =C2*19/D2+C2/10000 -> 7885.0581
A3: H | B3: 1 | C3: =Tabell!$B$8 -> 307 | D3: 1.4 | E3: =C3*19/D3+C3/10000 -> 4166.459271
A4: A | B4: 2 | C4: =Tabell!$B$5 -> 581 | D4: 3 | E4: =C4*19/D4+C4/10000 -> 3679.724767
A5: SP | B5: 1 | C5: =Tabell!$B$7 -> 190 | D5: 1.4 | E5: =C5*19/D5+C5/10000 -> 2578.590429
A6: A | B6: 3 | C6: =Tabell!$B$5 -> 581 | D6: 5 | E6: =C6*19/D6+C6/10000 -> 2207.8581
A7: H | B7: 2 | C7: =Tabell!$B$8 -> 307 | D7: 3 | E7: =C7*19/D7+C7/10000 -> 1944.364033
A8: A | B8: 4 | C8: =Tabell!$B$5 -> 581 | D8: 7 | E8: =C8*19/D8+C8/10000 -> 1577.0581
A9: Fe | B9: 1 | C9: =Tabell!$B$11 -> 114 | D9: 1.4 | E9: =C9*19/D9+C9/10000 -> 1547.154257
A10: A | B10: 5 | C10: =Tabell!$B$5 -> 581 | D10: 9 | E10: =C10*19/D10+C10/10000 -> 1226.613656
A11: SANUV | B11: 1 | C11: =Tabell!$B$10 -> 89 | D11: 1.4 | E11: =C11*19/D11+C11/10000 -> 1207.866043
A12: SP | B12: 2 | C12: =Tabell!$B$7 -> 190 | D12: 3 | E12: =C12*19/D12+C12/10000 -> 1203.352333
A13: H | B13: 3 | C13: =Tabell!$B$8 -> 307 | D13: 5 | E13: =C13*19/D13+C13/10000 -> 1166.6307
A14: FrP | B14: 1 | C14: =Tabell!$B$9 -> 78 | D14: 1.4 | E14: =C14*19/D14+C14/10000 -> 1058.579229
A15: V | B15: 1 | C15: =Tabell!$B$12 -> 77 | D15: 1.4 | E15: =C15*19/D15+C15/10000 -> 1045.0077
A16: A | B16: 6 | C16: =Tabell!$B$5 -> 581 | D16: 11 | E16: =C16*19/D16+C16/10000 -> 1003.603555
A17: A | B17: 7 | C17: =Tabell!$B$5 -> 581 | D17: 13 | E17: =C17*19/D17+C17/10000 -> 849.2119462
A18: H | B18: 4 | C18: =Tabell!$B$8 -> 307 | D18: 7 | E18: =C18*19/D18+C18/10000 -> 833.3164143
A19: SV | B19: 1 | C19: =Tabell!$B$6 -> 55 | D19: 1.4 | E19: =C19*19/D19+C19/10000 -> 746.4340714
A20: A | B20: 8 | C20: =Tabell!$B$5 -> 581 | D20: 15 | E20: =C20*19/D20+C20/10000 -> 735.9914333
A21: SP | B21: 3 | C21: =Tabell!$B$7 -> 190 | D21: 5 | E21: =C21*19/D21+C21/10000 -> 722.019
A22: Fe | B22: 2 | C22: =Tabell!$B$11 -> 114 | D22: 3 | E22: =C22*19/D22+C22/10000 -> 722.0114
A23: A | B23: 9 | C23: =Tabell!$B$5 -> 581 | D23: 17 | E23: =C23*19/D23+C23/10000 -> 649.4110412
A24: H | B24: 5 | C24: =Tabell!$B$8 -> 307 | D24: 9 | E24: =C24*19/D24+C24/10000 -> 648.1418111
A25: A | B25: 10 | C25: =Tabell!$B$5 -> 581 | D25: 19 | E25: =C25*19/D25+C25/10000 -> 581.0581
A26: SANUV | B26: 2 | C26: =Tabell!$B$10 -> 89 | D26: 3 | E26: =C26*19/D26+C26/10000 -> 563.6755667
A27: H | B27: 6 | C27: =Tabell!$B$8 -> 307 | D27: 11 | E27: =C27*19/D27+C27/10000 -> 530.3034273
A28: A | B28: 11 | C28: =Tabell!$B$5 -> 581 | D28: 21 | E28: =C28*19/D28+C28/10000 -> 525.7247667
A29: SP | B29: 4 | C29: =Tabell!$B$7 -> 190 | D29: 7 | E29: =C29*19/D29+C29/10000 -> 515.7332857
A30: FrP | B30: 2 | C30: =Tabell!$B$9 -> 78 | D30: 3 | E30: =C30*19/D30+C30/10000 -> 494.0078
A31: V | B31: 2 | C31: =Tabell!$B$12 -> 77 | D31: 3 | E31: =C31*19/D31+C31/10000 -> 487.6743667
A32: A | B32: 12 | C32: =Tabell!$B$5 -> 581 | D32: 23 | E32: =C32*19/D32+C32/10000 -> 480.0146217
A33: H | B33: 7 | C33: =Tabell!$B$8 -> 307 | D33: 13 | E33: =C33*19/D33+C33/10000 -> 448.7230077
A34: A | B34: 13 | C34: =Tabell!$B$5 -> 581 | D34: 25 | E34: =C34*19/D34+C34/10000 -> 441.6181
A35: Fe | B35: 3 | C35: =Tabell!$B$11 -> 114 | D35: 5 | E35: =C35*19/D35+C35/10000 -> 433.2114
A36: A | B36: 14 | C36: =Tabell!$B$5 -> 581 | D36: 27 | E36: =C36*19/D36+C36/10000 -> 408.9099519
A37: SP | B37: 5 | C37: =Tabell!$B$7 -> 190 | D37: 9 | E37: =C37*19/D37+C37/10000 -> 401.1301111
A38: H | B38: 8 | C38: =Tabell!$B$8 -> 307 | D38: 15 | E38: =C38*19/D38+C38/10000 -> 388.8973667
A39: A | B39: 15 | C39: =Tabell!$B$5 -> 581 | D39: 29 | E39: =C39*19/D39+C39/10000 -> 380.7132724
A40: A | B40: 16 | C40: =Tabell!$B$5 -> 581 | D40: 31 | E40: =C40*19/D40+C40/10000 -> 356.1548742
A41: SV | B41: 2 | C41: =Tabell!$B$6 -> 55 | D41: 3 | E41: =C41*19/D41+C41/10000 -> 348.3388333
A42: H | B42: 9 | C42: =Tabell!$B$8 -> 307 | D42: 17 | E42: =C42*19/D42+C42/10000 -> 343.1483471
A43: SANUV | B43: 3 | C43: =Tabell!$B$10 -> 89 | D43: 5 | E43: =C43*19/D43+C43/10000 -> 338.2089
A44: A | B44: 17 | C44: =Tabell!$B$5 -> 581 | D44: 33 | E44: =C44*19/D44+C44/10000 -> 334.5732515
A45: SP | B45: 6 | C45: =Tabell!$B$7 -> 190 | D45: 11 | E45: =C45*19/D45+C45/10000 -> 328.2008182
A46: A | B46: 18 | C46: =Tabell!$B$5 -> 581 | D46: 35 | E46: =C46*19/D46+C46/10000 -> 315.4581
A47: Fe | B47: 4 | C47: =Tabell!$B$11 -> 114 | D47: 7 | E47: =C47*19/D47+C47/10000 -> 309.4399714
A48: H | B48: 10 | C48: =Tabell!$B$8 -> 307 | D48: 19 | E48: =C48*19/D48+C48/10000 -> 307.0307
A49: A | B49: 19 | C49: =Tabell!$B$5 -> 581 | D49: 37 | E49: =C49*19/D49+C49/10000 -> 298.4094514
A50: FrP | B50: 3 | C50: =Tabell!$B$9 -> 78 | D50: 5 | E50: =C50*19/D50+C50/10000 -> 296.4078
A51: V | B51: 3 | C51: =Tabell!$B$12 -> 77 | D51: 5 | E51: =C51*19/D51+C51/10000 -> 292.6077
A52: A | B52: 20 | C52: =Tabell!$B$5 -> 581 | D52: 39 | E52: =C52*19/D52+C52/10000 -> 283.1093821
A53: H | B53: 11 | C53: =Tabell!$B$8 -> 307 | D53: 21 | E53: =C53*19/D53+C53/10000 -> 277.7926048
A54: SP | B54: 7 | C54: =Tabell!$B$7 -> 190 | D54: 13 | E54: =C54*19/D54+C54/10000 -> 277.7113077
A55: A | B55: 21 | C55: =Tabell!$B$5 -> 581 | D55: 41 | E55: =C55*19/D55+C55/10000 -> 269.3020024
A56: A | B56: 22 | C56: =Tabell!$B$5 -> 581 | D56: 43 | E56: =C56*19/D56+C56/10000 -> 256.7790302
A57: H | B57: 12 | C57: =Tabell!$B$8 -> 307 | D57: 23 | E57: =C57*19/D57+C57/10000 -> 253.6393957
A58: A | B58: 23 | C58: =Tabell!$B$5 -> 581 | D58: 45 | E58: =C58*19/D58+C58/10000 -> 245.3692111
A59: SANUV | B59: 4 | C59: =Tabell!$B$10 -> 89 | D59: 7 | E59: =C59*19/D59+C59/10000 -> 241.5803286
A60: SP | B60: 8 | C60: =Tabell!$B$7 -> 190 | D60: 15 | E60: =C60*19/D60+C60/10000 -> 240.6856667
A61: Fe | B61: 5 | C61: =Tabell!$B$11 -> 114 | D61: 9 | E61: =C61*19/D61+C61/10000 -> 240.6780667
A62: H | B62: 13 | C62: =Tabell!$B$8 -> 307 | D62: 25 | E62: =C62*19/D62+C62/10000 -> 233.3507
A63: H | B63: 14 | C63: =Tabell!$B$8 -> 307 | D63: 27 | E63: =C63*19/D63+C63/10000 -> 216.067737
A64: SP | B64: 9 | C64: =Tabell!$B$7 -> 190 | D64: 17 | E64: =C64*19/D64+C64/10000 -> 212.3719412
A65: FrP | B65: 4 | C65: =Tabell!$B$9 -> 78 | D65: 7 | E65: =C65*19/D65+C65/10000 -> 211.7220857
A66: V | B66: 4 | C66: =Tabell!$B$12 -> 77 | D66: 7 | E66: =C66*19/D66+C66/10000 -> 209.0077
A67: SV | B67: 3 | C67: =Tabell!$B$6 -> 55 | D67: 5 | E67: =C67*19/D67+C67/10000 -> 209.0055
A68: H | B68: 15 | C68: =Tabell!$B$8 -> 307 | D68: 29 | E68: =C68*19/D68+C68/10000 -> 201.168631
A69: Fe | B69: 6 | C69: =Tabell!$B$11 -> 114 | D69: 11 | E69: =C69*19/D69+C69/10000 -> 196.9204909
A70: SP | B70: 10 | C70: =Tabell!$B$7 -> 190 | D70: 19 | E70: =C70*19/D70+C70/10000 -> 190.019
A71: H | B71: 16 | C71: =Tabell!$B$8 -> 307 | D71: 31 | E71: =C71*19/D71+C71/10000 -> 188.1919903
A72: SANUV | B72: 5 | C72: =Tabell!$B$10 -> 89 | D72: 9 | E72: =C72*19/D72+C72/10000 -> 187.8977889
A73: H | B73: 17 | C73: =Tabell!$B$8 -> 307 | D73: 33 | E73: =C73*19/D73+C73/10000 -> 176.7882758
A74: SP | B74: 11 | C74: =Tabell!$B$7 -> 190 | D74: 21 | E74: =C74*19/D74+C74/10000 -> 171.9237619
A75: H | B75: 18 | C75: =Tabell!$B$8 -> 307 | D75: 35 | E75: =C75*19/D75+C75/10000 -> 166.6878429
A76: Fe | B76: 7 | C76: =Tabell!$B$11 -> 114 | D76: 13 | E76: =C76*19/D76+C76/10000 -> 166.6267846
A77: FrP | B77: 5 | C77: =Tabell!$B$9 -> 78 | D77: 9 | E77: =C77*19/D77+C77/10000 -> 164.6744667
A78: V | B78: 5 | C78: =Tabell!$B$12 -> 77 | D78: 9 | E78: =C78*19/D78+C78/10000 -> 162.5632556
A79: H | B79: 19 | C79: =Tabell!$B$8 -> 307 | D79: 37 | E79: =C79*19/D79+C79/10000 -> 157.6793486
A80: SP | B80: 12 | C80: =Tabell!$B$7 -> 190 | D80: 23 | E80: =C80*19/D80+C80/10000 -> 156.9755217
A81: SANUV | B81: 6 | C81: =Tabell!$B$10 -> 89 | D81: 11 | E81: =C81*19/D81+C81/10000 -> 153.7361727
A82: H | B82: 20 | C82: =Tabell!$B$8 -> 307 | D82: 39 | E82: =C82*19/D82+C82/10000 -> 149.5948026
A83: SV | B83: 4 | C83: =Tabell!$B$6 -> 55 | D83: 7 | E83: =C83*19/D83+C83/10000 -> 149.2912143
A84: SP | B84: 13 | C84: =Tabell!$B$7 -> 190 | D84: 25 | E84: =C84*19/D84+C84/10000 -> 144.419
A85: Fe | B85: 8 | C85: =Tabell!$B$11 -> 114 | D85: 15 | E85: =C85*19/D85+C85/10000 -> 144.4114
A86: H | B86: 21 | C86: =Tabell!$B$8 -> 307 | D86: 41 | E86: =C86*19/D86+C86/10000 -> 142.2989927
A87: H | B87: 22 | C87: =Tabell!$B$8 -> 307 | D87: 43 | E87: =C87*19/D87+C87/10000 -> 135.6818628
A88: FrP | B88: 6 | C88: =Tabell!$B$9 -> 78 | D88: 11 | E88: =C88*19/D88+C88/10000 -> 134.7350727
A89: SP | B89: 14 | C89: =Tabell!$B$7 -> 190 | D89: 27 | E89: =C89*19/D89+C89/10000 -> 133.7227037
A90: V | B90: 6 | C90: =Tabell!$B$12 -> 77 | D90: 11 | E90: =C90*19/D90+C90/10000 -> 133.0077
A91: SANUV | B91: 7 | C91: =Tabell!$B$10 -> 89 | D91: 13 | E91: =C91*19/D91+C91/10000 -> 130.0858231
A92: H | B92: 23 | C92: =Tabell!$B$8 -> 307 | D92: 45 | E92: =C92*19/D92+C92/10000 -> 129.6529222
A93: Fe | B93: 9 | C93: =Tabell!$B$11 -> 114 | D93: 17 | E93: =C93*19/D93+C93/10000 -> 127.4231647
A94: SP | B94: 15 | C94: =Tabell!$B$7 -> 190 | D94: 29 | E94: =C94*19/D94+C94/10000 -> 124.5017586
A95: SP | B95: 16 | C95: =Tabell!$B$7 -> 190 | D95: 31 | E95: =C95*19/D95+C95/10000 -> 116.4706129
A96: SV | B96: 5 | C96: =Tabell!$B$6 -> 55 | D96: 9 | E96: =C96*19/D96+C96/10000 -> 116.1166111
A97: Fe | B97: 10 | C97: =Tabell!$B$11 -> 114 | D97: 19 | E97: =C97*19/D97+C97/10000 -> 114.0114
A98: FrP | B98: 7 | C98: =Tabell!$B$9 -> 78 | D98: 13 | E98: =C98*19/D98+C98/10000 -> 114.0078
A99: SANUV | B99: 8 | C99: =Tabell!$B$10 -> 89 | D99: 15 | E99: =C99*19/D99+C99/10000 -> 112.7422333
A100: V | B100: 7 | C100: =Tabell!$B$12 -> 77 | D100: 13 | E100: =C100*19/D100+C100/10000 -> 112.5461615
A101: SP | B101: 17 | C101: =Tabell!$B$7 -> 190 | D101: 33 | E101: =C101*19/D101+C101/10000 -> 109.4129394
A102: SP | B102: 18 | C102: =Tabell!$B$7 -> 190 | D102: 35 | E102: =C102*19/D102+C102/10000 -> 103.1618571
A103: Fe | B103: 11 | C103: =Tabell!$B$11 -> 114 | D103: 21 | E103: =C103*19/D103+C103/10000 -> 103.1542571
A104: SANUV | B104: 9 | C104: =Tabell!$B$10 -> 89 | D104: 17 | E104: =C104*19/D104+C104/10000 -> 99.47948824
A105: FrP | B105: 8 | C105: =Tabell!$B$9 -> 78 | D105: 15 | E105: =C105*19/D105+C105/10000 -> 98.8078
A106: SP | B106: 19 | C106: =Tabell!$B$7 -> 190 | D106: 37 | E106: =C106*19/D106+C106/10000 -> 97.58656757
A107: V | B107: 8 | C107: =Tabell!$B$12 -> 77 | D107: 15 | E107: =C107*19/D107+C107/10000 -> 97.54103333
A108: SV | B108: 6 | C108: =Tabell!$B$6 -> 55 | D108: 11 | E108: =C108*19/D108+C108/10000 -> 95.0055
A109: Fe | B109: 12 | C109: =Tabell!$B$11 -> 114 | D109: 23 | E109: =C109*19/D109+C109/10000 -> 94.18531304
A110: SP | B110: 20 | C110: =Tabell!$B$7 -> 190 | D110: 39 | E110: =C110*19/D110+C110/10000 -> 92.58310256
A111: SANUV | B111: 10 | C111: =Tabell!$B$10 -> 89 | D111: 19 | E111: =C111*19/D111+C111/10000 -> 89.0089
A112: SP | B112: 21 | C112: =Tabell!$B$7 -> 190 | D112: 41 | E112: =C112*19/D112+C112/10000 -> 88.06778049
A113: FrP | B113: 9 | C113: =Tabell!$B$9 -> 78 | D113: 17 | E113: =C113*19/D113+C113/10000 -> 87.18427059
A114: Fe | B114: 13 | C114: =Tabell!$B$11 -> 114 | D114: 25 | E114: =C114*19/D114+C114/10000 -> 86.6514
A115: V | B115: 9 | C115: =Tabell!$B$12 -> 77 | D115: 17 | E115: =C115*19/D115+C115/10000 -> 86.06652353
A116: SP | B116: 22 | C116: =Tabell!$B$7 -> 190 | D116: 43 | E116: =C116*19/D116+C116/10000 -> 83.97248837
A117: SANUV | B117: 11 | C117: =Tabell!$B$10 -> 89 | D117: 21 | E117: =C117*19/D117+C117/10000 -> 80.53270952
A118: SV | B118: 7 | C118: =Tabell!$B$6 -> 55 | D118: 13 | E118: =C118*19/D118+C118/10000 -> 80.39011538
A119: SP | B119: 23 | C119: =Tabell!$B$7 -> 190 | D119: 45 | E119: =C119*19/D119+C119/10000 -> 80.24122222
A120: Fe | B120: 14 | C120: =Tabell!$B$11 -> 114 | D120: 27 | E120: =C120*19/D120+C120/10000 -> 80.23362222
A121: FrP | B121: 10 | C121: =Tabell!$B$9 -> 78 | D121: 19 | E121: =C121*19/D121+C121/10000 -> 78.0078
A122: V | B122: 10 | C122: =Tabell!$B$12 -> 77 | D122: 19 | E122: =C122*19/D122+C122/10000 -> 77.0077
A123: Fe | B123: 15 | C123: =Tabell!$B$11 -> 114 | D123: 29 | E123: =C123*19/D123+C123/10000 -> 74.70105517
A124: SANUV | B124: 12 | C124: =Tabell!$B$10 -> 89 | D124: 23 | E124: =C124*19/D124+C124/10000 -> 73.53063913
A125: FrP | B125: 11 | C125: =Tabell!$B$9 -> 78 | D125: 21 | E125: =C125*19/D125+C125/10000 -> 70.57922857
A126: Fe | B126: 16 | C126: =Tabell!$B$11 -> 114 | D126: 31 | E126: =C126*19/D126+C126/10000 -> 69.88236774
A127: V | B127: 11 | C127: =Tabell!$B$12 -> 77 | D127: 21 | E127: =C127*19/D127+C127/10000 -> 69.67436667
A128: SV | B128: 8 | C128: =Tabell!$B$6 -> 55 | D128: 15 | E128: =C128*19/D128+C128/10000 -> 69.67216667
A129: SANUV | B129: 13 | C129: =Tabell!$B$10 -> 89 | D129: 25 | E129: =C129*19/D129+C129/10000 -> 67.6489
A130: Fe | B130: 17 | C130: =Tabell!$B$11 -> 114 | D130: 33 | E130: =C130*19/D130+C130/10000 -> 65.64776364
A131: FrP | B131: 12 | C131: =Tabell!$B$9 -> 78 | D131: 23 | E131: =C131*19/D131+C131/10000 -> 64.44258261
A132: V | B132: 12 | C132: =Tabell!$B$12 -> 77 | D132: 23 | E132: =C132*19/D132+C132/10000 -> 63.61639565
A133: SANUV | B133: 14 | C133: =Tabell!$B$10 -> 89 | D133: 27 | E133: =C133*19/D133+C133/10000 -> 62.63852963
A134: Fe | B134: 18 | C134: =Tabell!$B$11 -> 114 | D134: 35 | E134: =C134*19/D134+C134/10000 -> 61.89711429
A135: SV | B135: 9 | C135: =Tabell!$B$6 -> 55 | D135: 17 | E135: =C135*19/D135+C135/10000 -> 61.47608824
A136: FrP | B136: 13 | C136: =Tabell!$B$9 -> 78 | D136: 25 | E136: =C136*19/D136+C136/10000 -> 59.2878
A137: Fe | B137: 19 | C137: =Tabell!$B$11 -> 114 | D137: 37 | E137: =C137*19/D137+C137/10000 -> 58.55194054
A138: V | B138: 13 | C138: =Tabell!$B$12 -> 77 | D138: 25 | E138: =C138*19/D138+C138/10000 -> 58.5277
A139: SANUV | B139: 15 | C139: =Tabell!$B$10 -> 89 | D139: 29 | E139: =C139*19/D139+C139/10000 -> 58.31924483
A140: Fe | B140: 20 | C140: =Tabell!$B$11 -> 114 | D140: 39 | E140: =C140*19/D140+C140/10000 -> 55.54986154
A141: SV | B141: 10 | C141: =Tabell!$B$6 -> 55 | D141: 19 | E141: =C141*19/D141+C141/10000 -> 55.0055
A142: FrP | B142: 14 | C142: =Tabell!$B$9 -> 78 | D142: 27 | E142: =C142*19/D142+C142/10000 -> 54.89668889
A143: SANUV | B143: 16 | C143: =Tabell!$B$10 -> 89 | D143: 31 | E143: =C143*19/D143+C143/10000 -> 54.5572871
A144: V | B144: 14 | C144: =Tabell!$B$12 -> 77 | D144: 27 | E144: =C144*19/D144+C144/10000 -> 54.19288519
A145: Fe | B145: 21 | C145: =Tabell!$B$11 -> 114 | D145: 41 | E145: =C145*19/D145+C145/10000 -> 52.84066829
A146: SANUV | B146: 17 | C146: =Tabell!$B$10 -> 89 | D146: 33 | E146: =C146*19/D146+C146/10000 -> 51.25132424
A147: FrP | B147: 15 | C147: =Tabell!$B$9 -> 78 | D147: 29 | E147: =C147*19/D147+C147/10000 -> 51.11124828
A148: V | B148: 15 | C148: =Tabell!$B$12 -> 77 | D148: 29 | E148: =C148*19/D148+C148/10000 -> 50.45597586
A149: Fe | B149: 22 | C149: =Tabell!$B$11 -> 114 | D149: 43 | E149: =C149*19/D149+C149/10000 -> 50.38349302
A150: SV | B150: 11 | C150: =Tabell!$B$6 -> 55 | D150: 21 | E150: =C150*19/D150+C150/10000 -> 49.76740476
A151: SANUV | B151: 18 | C151: =Tabell!$B$10 -> 89 | D151: 35 | E151: =C151*19/D151+C151/10000 -> 48.32318571
A152: Fe | B152: 23 | C152: =Tabell!$B$11 -> 114 | D152: 45 | E152: =C152*19/D152+C152/10000 -> 48.14473333
A153: FrP | B153: 16 | C153: =Tabell!$B$9 -> 78 | D153: 31 | E153: =C153*19/D153+C153/10000 -> 47.81425161
A154: V | B154: 16 | C154: =Tabell!$B$12 -> 77 | D154: 31 | E154: =C154*19/D154+C154/10000 -> 47.20124839
A155: SANUV | B155: 19 | C155: =Tabell!$B$10 -> 89 | D155: 37 | E155: =C155*19/D155+C155/10000 -> 45.7116027
A156: SV | B156: 12 | C156: =Tabell!$B$6 -> 55 | D156: 23 | E156: =C156*19/D156+C156/10000 -> 45.44028261
A157: FrP | B157: 17 | C157: =Tabell!$B$9 -> 78 | D157: 33 | E157: =C157*19/D157+C157/10000 -> 44.91689091
A158: V | B158: 17 | C158: =Tabell!$B$12 -> 77 | D158: 33 | E158: =C158*19/D158+C158/10000 -> 44.34103333
A159: SANUV | B159: 20 | C159: =Tabell!$B$10 -> 89 | D159: 39 | E159: =C159*19/D159+C159/10000 -> 43.36787436
A160: FrP | B160: 18 | C160: =Tabell!$B$9 -> 78 | D160: 35 | E160: =C160*19/D160+C160/10000 -> 42.35065714
A161: V | B161: 18 | C161: =Tabell!$B$12 -> 77 | D161: 35 | E161: =C161*19/D161+C161/10000 -> 41.8077
A162: SV | B162: 13 | C162: =Tabell!$B$6 -> 55 | D162: 25 | E162: =C162*19/D162+C162/10000 -> 41.8055
A163: SANUV | B163: 21 | C163: =Tabell!$B$10 -> 89 | D163: 41 | E163: =C163*19/D163+C163/10000 -> 41.25280244
A164: FrP | B164: 19 | C164: =Tabell!$B$9 -> 78 | D164: 37 | E164: =C164*19/D164+C164/10000 -> 40.06185405
A165: V | B165: 19 | C165: =Tabell!$B$12 -> 77 | D165: 37 | E165: =C165*19/D165+C165/10000 -> 39.54824054
A166: SANUV | B166: 22 | C166: =Tabell!$B$10 -> 89 | D166: 43 | E166: =C166*19/D166+C166/10000 -> 39.3344814
A167: SV | B167: 14 | C167: =Tabell!$B$6 -> 55 | D167: 27 | E167: =C167*19/D167+C167/10000 -> 38.7092037
A168: FrP | B168: 20 | C168: =Tabell!$B$9 -> 78 | D168: 39 | E168: =C168*19/D168+C168/10000 -> 38.0078
A169: SANUV | B169: 23 | C169: =Tabell!$B$10 -> 89 | D169: 45 | E169: =C169*19/D169+C169/10000 -> 37.58667778
A170: V | B170: 20 | C170: =Tabell!$B$12 -> 77 | D170: 39 | E170: =C170*19/D170+C170/10000 -> 37.52052051
A171: FrP | B171: 21 | C171: =Tabell!$B$9 -> 78 | D171: 41 | E171: =C171*19/D171+C171/10000 -> 36.15414146
A172: SV | B172: 15 | C172: =Tabell!$B$6 -> 55 | D172: 29 | E172: =C172*19/D172+C172/10000 -> 36.03998276
A173: V | B173: 21 | C173: =Tabell!$B$12 -> 77 | D173: 41 | E173: =C173*19/D173+C173/10000 -> 35.69062683
A174: FrP | B174: 22 | C174: =Tabell!$B$9 -> 78 | D174: 43 | E174: =C174*19/D174+C174/10000 -> 34.47291628
A175: V | B175: 22 | C175: =Tabell!$B$12 -> 77 | D175: 43 | E175: =C175*19/D175+C175/10000 -> 34.03095581
A176: SV | B176: 16 | C176: =Tabell!$B$6 -> 55 | D176: 31 | E176: =C176*19/D176+C176/10000 -> 33.71517742
A177: FrP | B177: 23 | C177: =Tabell!$B$9 -> 78 | D177: 45 | E177: =C177*19/D177+C177/10000 -> 32.94113333
A178: V | B178: 23 | C178: =Tabell!$B$12 -> 77 | D178: 45 | E178: =C178*19/D178+C178/10000 -> 32.51881111
A179: SV | B179: 17 | C179: =Tabell!$B$6 -> 55 | D179: 33 | E179: =C179*19/D179+C179/10000 -> 31.67216667
A180: SV | B180: 18 | C180: =Tabell!$B$6 -> 55 | D180: 35 | E180: =C180*19/D180+C180/10000 -> 29.86264286
A181: SV | B181: 19 | C181: =Tabell!$B$6 -> 55 | D181: 37 | E181: =C181*19/D181+C181/10000 -> 28.24874324
A182: SV | B182: 20 | C182: =Tabell!$B$6 -> 55 | D182: 39 | E182: =C182*19/D182+C182/10000 -> 26.80037179
A183: SV | B183: 21 | C183: =Tabell!$B$6 -> 55 | D183: 41 | E183: =C183*19/D183+C183/10000 -> 25.49330488
A184: SV | B184: 22 | C184: =Tabell!$B$6 -> 55 | D184: 43 | E184: =C184*19/D184+C184/10000 -> 24.30782558
A185: SV | B185: 23 | C185: =Tabell!$B$6 -> 55 | D185: 45 | E185: =C185*19/D185+C185/10000 -> 23.22772222

Sheet Datagrunnlag
A1: Kretsvis fordeling av stemmene
A3: KST | B3: Forh.st. | D3: Tanabru | F3: Austertana | H3: Sirma | J3: Polm./All. | L3: Boftsa | N3: Polm 02 | P3: Andre/sær | R3: SUM | T3: Endelig 2007
A4: 2007 | B4: R+UR | D4: R+UR | F4: R+UR | H4: R+UR | J4: R+UR | L4: R+UR | N4: R+UR | P4: R+UR | R4: R+UR
A5: Ap | B5: 103 | C5: =B5/B$13 -> 0.3366013072 | D5: 234 | E5: =D5/D$13 -> 0.4373831776 | F5: 18 | G5: =F5/F$13 -> 0.1682242991 | H5: 17 | I5: =H5/H$13 -> 0.2698412698 | J5: 26 | K5: =J5/J$13 -> 0.3513513514 | L5: 99 | M5: =L5/L$13 -> 0.543956044 | N5: 34 | O5: =N5/N$13 -> 0.3655913978 | P5: =+T5-R5 -> 94 | Q5: 0.5497076023 | R5: =+B5+D5+F5+H5+J5+L5+N5 -> 531 | S5: =R5/R$13 -> 0.3904411765 | T5: 625 | U5: =T5/T$13 -> 0.4082299151
A6: SV | B6: 10 | C6: 0.03267973856 | D6: 6 | E6: 0.01121495327 | F6: 0 | G6: 0 | H6: 2 | I6: 0.03174603175 | J6: 2 | K6: 0.02702702703 | L6: 12 | M6: 0.06593406593 | N6: 0 | O6: 0 | P6: 4 | Q6: 0.02339181287 | R6: =+B6+D6+F6+H6+J6+L6+N6 -> 32 | S6: 0.02352941176 | T6: 36 | U6: 0.02351404311
A7: Sp | B7: 22 | C7: 0.07189542484 | D7: 25 | E7: 0.04672897196 | F7: 2 | G7: 0.01869158879 | H7: 3 | I7: 0.04761904762 | J7: 2 | K7: 0.02702702703 | L7: 12 | M7: 0.06593406593 | N7: 5 | O7: 0.05376344086 | P7: 5 | Q7: 0.02923976608 | R7: 71 | S7: 0.05220588235 | T7: 76 | U7: 0.04964075767
A8: H | B8: 33 | C8: 0.1078431373 | D8: 98 | E8: 0.1831775701 | F8: 27 | G8: 0.2523364486 | H8: 6 | I8: 0.09523809524 | J8: 5 | K8: 0.06756756757 | L8: 6 | M8: 0.03296703297 | N8: 7 | O8: 0.0752688172 | P8: 9 | Q8: 0.05263157895 | R8: =+B8+D8+F8+H8+J8+L8+N8 -> 182 | S8: 0.1338235294 | T8: 191 | U8: 0.1247550621
A9: FrP | B9: 36 | C9: 0.1176470588 | D9: 52 | E9: 0.09719626168 | F9: 18 | G9: 0.1682242991 | H9: 0 | I9: 0 | J9: 8 | K9: 0.1081081081 | L9: 13 | M9: 0.07142857143 | N9: 1 | O9: 0.01075268817 | P9: 12 | Q9: 0.0701754386 | R9: 128 | S9: 0.09411764706 | T9: 140 | U9: 0.09144350098
A10: Sfp | B10: 27 | C10: 0.08823529412 | D10: 22 | E10: 0.04112149533 | F10: 0 | G10: 0 | H10: 14 | I10: 0.2222222222 | J10: 6 | K10: 0.08108108108 | L10: 3 | M10: 0.01648351648 | N10: 24 | O10: 0.2580645161 | P10: 13 | Q10: 0.07602339181 | R10: =+B10+D10+F10+H10+J10+L10+N10 -> 96 | S10: 0.07058823529 | T10: 109 | U10: 0.07119529719
A11: TaFe | B11: 37 | C11: 0.1209150327 | D11: 54 | E11: 0.1009345794 | F11: 0 | G11: 0 | H11: 14 | I11: 0.2222222222 | J11: 25 | K11: 0.3378378378 | L11: 2 | M11: 0.01098901099 | N11: 21 | O11: 0.2258064516 | P11: 22 | Q11: 0.1286549708 | R11: 153 | S11: 0.1125 | T11: 175 | U11: 0.1143043762
A12: VU | B12: 38 | C12: 0.1241830065 | D12: 44 | E12: 0.08224299065 | F12: 42 | G12: 0.3925233645 | H12: 7 | I12: 0.1111111111 | J12: 0 | K12: 0 | L12: 35 | M12: 0.1923076923 | N12: 1 | O12: 0.01075268817 | P12: =T12-R12 -> 12 | Q12: 0.0701754386 | R12: 167 | S12: 0.1227941176 | T12: 179 | U12: 0.1169170477
A13: SUM | B13: =SUM(B5:B12) -> 306 | C13: =SUM(C5:C12) -> 1 | D13: =SUM(D5:D12) -> 535 | E13: =SUM(E5:E12) -> 1 | F13: =SUM(F5:F12) -> 107 | G13: 1 | H13: 63 | I13: 1 | J13: 74 | K13: 1 | L13: 182 | M13: 1 | N13: 93 | O13: 1 | P13: 171 | Q13: =SUM(Q5:Q12) -> 1 | R13: 1360 | S13: 1 | T13: =SUM(T5:T12) -> 1531
A14: Blank | E14: 2 | G14: 1 | M14: 2
A17: KST | B17: Forh.st. | D17: Tanabru | F17: Austertana | H17: Sirma | J17: Polm./All. | L17: Boftsa | N17: Båteng | P17: Andre/sær | R17: SUM | T17: Endelig 2011
A18: 2011
A19: A | B19: =130+11 -> 141 | C19: =IF(ISNUMBER(B19),B19/B$27," %") -> 0.4638157895 | D19: 251 | E19: =IF(ISNUMBER(D19),D19/D$27," %") -> 0.3903576983 | F19: 18 | G19: =IF(ISNUMBER(F19),F19/F$27," %") -> 0.1395348837 | H19: 19 | I19: =IF(ISNUMBER(H19),H19/H$27," %") -> 0.3166666667 | J19: 18 | K19: =IF(ISNUMBER(J19),J19/J$27," %") -> 0.2769230769 | L19: 106 | M19: =IF(ISNUMBER(L19),L19/L$27," %") -> 0.5492227979 | N19: 16 | O19: =IF(ISNUMBER(N19),N19/N$27," %") -> 0.275862069 | P19: 12 | Q19: =P19/P$13 -> 0.0701754386 | R19: =+B19+D19+F19+H19+J19+L19+N19+P19 -> 581 | S19: =R19/R$13 -> 0.4272058824 | T19: =R19 -> 581 | U19: =T19/R$27 -> 0.3896713615
A20: SV | B20: 12 | C20: =IF(ISNUMBER(B20),B20/B$27," %") -> 0.03947368421 | D20: 20 | E20: =IF(ISNUMBER(D20),D20/D$27," %") -> 0.03110419907 | F20: 3 | G20: 0.02325581395 | H20: 2 | I20: =IF(ISNUMBER(H20),H20/H$27," %") -> 0.03333333333 | J20: 2 | K20: 0.03076923077 | L20: 15 | M20: =IF(ISNUMBER(L20),L20/L$27," %") -> 0.07772020725 | N20: 1 | O20: 0.01724137931 | Q20: =P20/P$13 -> 0 | R20: =+B20+D20+F20+H20+J20+L20+N20+P20 -> 55 | S20: 0.04044117647 | T20: =R20 -> 55 | U20: 0.03688799463
A21: SP | B21: 45 | C21: =IF(ISNUMBER(B21),B21/B$27," %") -> 0.1480263158 | D21: 69 | E21: 0.1073094868 | F21: 31 | G21: 0.2403100775 | H21: 12 | I21: =IF(ISNUMBER(H21),H21/H$27," %") -> 0.2 | J21: 3 | K21: 0.04615384615 | L21: 19 | M21: =IF(ISNUMBER(L21),L21/L$27," %") -> 0.09844559585 | N21: 6 | O21: 0.1034482759 | P21: 5 | Q21: =P21/P$13 -> 0.02923976608 | R21: 190 | S21: 0.1397058824 | T21: 190 | U21: 0.1274312542
A22: H | B22: 39 | C22: =IF(ISNUMBER(B22),B22/B$27," %") -> 0.1282894737 | D22: 176 | E22: 0.2737169518 | F22: 37 | G22: 0.2868217054 | H22: 4 | I22: =IF(ISNUMBER(H22),H22/H$27," %") -> 0.06666666667 | J22: 6 | K22: 0.09230769231 | L22: 31 | M22: =IF(ISNUMBER(L22),L22/L$27," %") -> 0.1606217617 | N22: 4 | O22: 0.06896551724 | P22: 10 | Q22: =P22/P$13 -> 0.05847953216 | R22: 307 | S22: 0.2257352941 | T22: 307 | U22: 0.2059020791
A23: FRP | B23: 15 | C23: =IF(ISNUMBER(B23),B23/B$27," %") -> 0.04934210526 | D23: 47 | E23: 0.07309486781 | F23: 7 | G23: 0.05426356589 | I23: =IF(ISNUMBER(H23),H23/H$27," %") -> % | J23: 4 | K23: 0.06153846154 | L23: 3 | M23: =IF(ISNUMBER(L23),L23/L$27," %") -> 0.01554404145 | N23: 0 | O23: 0 | P23: 2 | Q23: =P23/P$13 -> 0.01169590643 | R23: 78 | S23: 0.05735294118 | T23: 78 | U23: 0.0523138833
A24: SANUV | B24: 29 | C24: =IF(ISNUMBER(B24),B24/B$27," %") -> 0.09539473684 | D24: 31 | E24: 0.04821150855 | F24: 4 | G24: 0.03100775194 | H24: 7 | I24: =IF(ISNUMBER(H24),H24/H$27," %") -> 0.1166666667 | J24: 1 | K24: 0.01538461538 | L24: 3 | M24: =IF(ISNUMBER(L24),L24/L$27," %") -> 0.01554404145 | N24: 8 | O24: 0.1379310345 | P24: 6 | Q24: =P24/P$13 -> 0.0350877193 | R24: 89 | S24: 0.06544117647 | T24: 89 | U24: 0.05969148223
A25: FE | B25: 14 | C25: =IF(ISNUMBER(B25),B25/B$27," %") -> 0.04605263158 | D25: 36 | E25: 0.05598755832 | F25: 1 | G25: 0.007751937984 | H25: 8 | I25: =IF(ISNUMBER(H25),H25/H$27," %") -> 0.1333333333 | J25: 28 | K25: 0.4307692308 | L25: 6 | M25: =IF(ISNUMBER(L25),L25/L$27," %") -> 0.0310880829 | N25: 18 | O25: 0.3103448276 | P25: 3 | Q25: =P25/P$13 -> 0.01754385965 | R25: 114 | S25: 0.08382352941 | T25: 114 | U25: 0.07645875252
A26: V | B26: 9 | C26: =IF(ISNUMBER(B26),B26/B$27," %") -> 0.02960526316 | D26: 13 | E26: 0.02021772939 | F26: 28 | G26: 0.2170542636 | H26: 8 | I26: =IF(ISNUMBER(H26),H26/H$27," %") -> 0.1333333333 | J26: 3 | K26: 0.04615384615 | L26: 10 | M26: =IF(ISNUMBER(L26),L26/L$27," %") -> 0.0518134715 | N26: 5 | O26: 0.08620689655 | P26: 1 | Q26: =P26/P$13 -> 0.005847953216 | R26: 77 | S26: 0.05661764706 | T26: 77 | U26: 0.05164319249
A27: SUM | B27: =SUM(B19:B26) -> 304 | C27: =SUM(C19:C26) -> 1 | D27: =SUM(D19:D26) -> 643 | E27: =SUM(E19:E26) -> 1 | F27: =SUM(F19:F26) -> 129 | G27: 1 | H27: 60 | I27: 1 | J27: 65 | K27: 1 | L27: 193 | M27: 1 | N27: 58 | O27: 1 | P27: 39 | Q27: 0.2280701754 | R27: 1491 | T27: =SUM(T19:T26) -> 1491
A28: Blank | B28: 2 | D28: 4 | H28: 0 | J28: 0 | L28: 0 | N28: 3
A31: KST | B31: Forh.st. | D31: Tanabru | F31: Austertana | H31: Sirma | J31: Polm./All. | L31: Boftsa | N31: Båteng | P31: Andre/sær | R31: SUM | T31: Endelig endring
A32: ENDR | B32: R+UR | D32: R+UR | F32: R+UR | H32: R+UR | J32: R+UR | L32: R+UR | N32: R+UR | P32: R+UR | R32: R+UR
A33: A | B33: =B19-B5 -> 38 | C33: =IF(ISNUMBER(C19),C19-C5," %") -> 0.1272144823 | D33: =D19-D5 -> 17 | E33: =IF(ISNUMBER(E19),E19-E5," %") -> -0.04702547928 | F33: =F19-F5 -> 0 | G33: =IF(ISNUMBER(G19),G19-G5," %") -> -0.02868941534 | H33: =H19-H5 -> 2 | I33: =IF(ISNUMBER(I19),I19-I5," %") -> 0.04682539683 | J33: =J19-J5 -> -8 | K33: =IF(ISNUMBER(K19),K19-K5," %") -> -0.07442827443 | L33: =L19-L5 -> 7 | M33: =IF(ISNUMBER(M19),M19-M5," %") -> 0.005266753971 | N33: =N19-N5 -> -18 | O33: =IF(ISNUMBER(O19),O19-O5," %") -> -0.08972932888 | P33: =P19-P5 -> -82 | Q33: =P33/P$13 -> -0.4795321637 | R33: =R19-R5 -> 50 | S33: =S19-S5 -> 0.03676470588 | T33: =+T19-T5 -> -44 | U33: =U19-U5 -> -0.01855855359
A34: SV | B34: =B20-B6 -> 2 | C34: =IF(ISNUMBER(C20),C20-C6," %") -> 0.006793945648 | D34: 14 | E34: 0.0198892458 | F34: =F20-F6 -> 3 | G34: =IF(ISNUMBER(G20),G20-G6," %") -> 0.02325581395 | H34: 0 | I34: 0.001587301587 | J34: =J20-J6 -> 0 | K34: =IF(ISNUMBER(K20),K20-K6," %") -> 0.003742203742 | L34: 3 | M34: 0.01178614132 | N34: =N20-N6 -> 1 | O34: =IF(ISNUMBER(O20),O20-O6," %") -> 0.01724137931 | P34: =P20-P6 -> -4 | Q34: -0.02339181287 | R34: 23 | S34: =S20-S6 -> 0.01691176471 | T34: =+T20-T6 -> 19 | U34: =U20-U6 -> 0.01337395153
A35: SP | B35: 23 | C35: 0.07613089095 | D35: 44 | E35: 0.06058051482 | F35: =F21-F7 -> 29 | G35: =IF(ISNUMBER(G21),G21-G7," %") -> 0.2216184887 | H35: 9 | I35: 0.1523809524 | J35: =J21-J7 -> 1 | K35: =IF(ISNUMBER(K21),K21-K7," %") -> 0.01912681913 | L35: 7 | M35: 0.03251152992 | N35: =N21-N7 -> 1 | O35: =IF(ISNUMBER(O21),O21-O7," %") -> 0.049684835 | P35: =P21-P7 -> 0 | Q35: 0 | R35: 119 | S35: =S21-S7 -> 0.0875 | T35: 114 | U35: 0.07779049652
A36: H | B36: 6 | C36: 0.02044633643 | D36: 78 | E36: 0.0905393817 | F36: =F22-F8 -> 10 | G36: =IF(ISNUMBER(G22),G22-G8," %") -> 0.03448525683 | H36: -2 | I36: -0.02857142857 | J36: =J22-J8 -> 1 | K36: =IF(ISNUMBER(K22),K22-K8," %") -> 0.02474012474 | L36: 25 | M36: 0.1276547287 | N36: =N22-N8 -> -3 | O36: =IF(ISNUMBER(O22),O22-O8," %") -> -0.006303299963 | P36: =P22-P8 -> 1 | Q36: 0.005847953216 | R36: 125 | S36: =S22-S8 -> 0.09191176471 | T36: 116 | U36: 0.08114701709
A37: FRP | B37: -21 | C37: -0.06830495356 | D37: -5 | E37: -0.02410139388 | F37: =F23-F9 -> -11 | G37: =IF(ISNUMBER(G23),G23-G9," %") -> -0.1139607332 | H37: 0 | I37: % | J37: =J23-J9 -> -4 | K37: =IF(ISNUMBER(K23),K23-K9," %") -> -0.04656964657 | L37: -10 | M37: -0.05588452998 | N37: =N23-N9 -> -1 | O37: =IF(ISNUMBER(O23),O23-O9," %") -> -0.01075268817 | P37: =P23-P9 -> -10 | Q37: -0.05847953216 | R37: -50 | S37: =S23-S9 -> -0.03676470588 | T37: -62 | U37: -0.03912961768
A38: SANUV | B38: 2 | C38: 0.007159442724 | D38: 9 | E38: 0.007090013227 | F38: =F24-F10 -> 4 | G38: =IF(ISNUMBER(G24),G24-G10," %") -> 0.03100775194 | H38: -7 | I38: -0.1055555556 | J38: =J24-J10 -> -5 | K38: =IF(ISNUMBER(K24),K24-K10," %") -> -0.0656964657 | L38: 0 | M38: -0.0009394750327 | N38: =N24-N10 -> -16 | O38: =IF(ISNUMBER(O24),O24-O10," %") -> -0.1201334816 | P38: =P24-P10 -> -7 | Q38: -0.04093567251 | R38: -7 | S38: =S24-S10 -> -0.005147058824 | T38: -20 | U38: -0.01150381496
A39: FE | B39: -23 | C39: -0.0748624011 | D39: -18 | E39: -0.04494702112 | F39: =F25-F11 -> 1 | G39: =IF(ISNUMBER(G25),G25-G11," %") -> 0.007751937984 | H39: -6 | I39: -0.08888888889 | J39: =J25-J11 -> 3 | K39: =IF(ISNUMBER(K25),K25-K11," %") -> 0.09293139293 | L39: 4 | M39: 0.02009907191 | N39: =N25-N11 -> -3 | O39: =IF(ISNUMBER(O25),O25-O11," %") -> 0.08453837597 | P39: =P25-P11 -> -19 | Q39: -0.1111111111 | R39: -39 | S39: =S25-S11 -> -0.02867647059 | T39: -61 | U39: -0.03784562371
A40: V | B40: -29 | C40: -0.09457774338 | D40: -31 | E40: -0.06202526126 | F40: =F26-F12 -> -14 | G40: =IF(ISNUMBER(G26),G26-G12," %") -> -0.1754691009 | H40: 1 | I40: 0.02222222222 | J40: =J26-J12 -> 3 | K40: =IF(ISNUMBER(K26),K26-K12," %") -> 0.04615384615 | L40: -25 | M40: -0.1404942208 | N40: =N26-N12 -> 4 | O40: =IF(ISNUMBER(O26),O26-O12," %") -> 0.07545420838 | P40: =P26-P12 -> -11 | Q40: -0.06432748538 | R40: -90 | S40: =S26-S12 -> -0.06617647059 | T40: -102 | U40: -0.06527385519
A41: SUM | B41: =SUM(B33:B40) -> -2 | C41: =SUM(C33:C40) -> 0 | D41: =SUM(D33:D40) -> 108 | E41: =SUM(E33:E40) -> -8.326672685e-17 | F41: =SUM(F33:F40) -> 22 | G41: 0 | H41: -3 | I41: 2.775557562e-17 | J41: -9 | K41: 0 | L41: 11 | M41: 0 | N41: -35 | O41: 0 | P41: =SUM(P33:P40) -> -132 | Q41: -0.7719298246 | R41: 131 | S41: 0.09632352941 | T41: =SUM(T33:T40) -> -40
A42: Blank
